bitfinex/quotes_SOLUSD_20240628
["timestamp","ask_amount","ask_price","bid_price","bid_amount"]
[1719542431654,16.5932,147.7,147.66,6.7722]
[1719542432548,16.5932,147.7,147.65,6.7726]
[1719542433838,16.5932,147.7,147.61,16.9361]
[1719542434045,6.7712,147.69,147.62,6.7737]
[1719542435057,6.7712,147.69,147.63,6.7735]
[1719542436365,16.5932,147.7,147.63,16.9338]
[1719542436740,16.5932,147.7,147.65,6.7726]
[1719542437452,16.5932,147.7,147.63,16.9338]
[1719542437453,16.5932,147.7,147.66,6.7722]
[1719542437654,16.5932,147.7,147.65,6.7726]
[1719542439939,16.5932,147.7,147.65,16.9312]
[1719542440755,13.24,147.67,147.66,6.7722]
[1719542441059,13.24,147.67,147.65,23.7038]
[1719542441444,16.5932,147.7,147.65,23.7038]
[1719542441757,16.5932,147.7,147.67,6.7716]
[1719542441958,13.24,147.68,147.67,6.7716]
[1719542442340,16.5932,147.7,147.67,6.7716]
[1719542442556,13.24,147.68,147.67,6.7716]
[1719542445045,13.24,147.68,147.66,6.7721]
[1719542445473,13.24,147.68,147.65,16.9312]
[1719542445787,6.0532,147.72,147.64,6.7731]
[1719542445788,13.24,147.67,147.64,6.7731]
[1719542446281,13.24,147.66,147.64,6.7731]
[1719542446654,13.24,147.67,147.64,6.7731]
[1719542448770,13.24,147.67,147.64,16.9324]
[1719542449273,13.24,147.67,147.66,6.7723]
[1719542450143,13.24,147.67,147.61,13.24]
[1719542450144,22.4723,147.67,147.61,13.24]
[1719542450469,13.24,147.62,147.57,7.07983453]
[1719542450765,13.24,147.61,147.54,13.24]
[1719542450950,13.24,147.61,147.53,12.4292771]
[1719542451152,13.24,147.61,147.54,13.24]
[1719542451448,13.24,147.61,147.58,6.7757]
[1719542451661,13.24,147.61,147.59,6.7754]
[1719542452065,13.24,147.61,147.58,6.7758]
[1719542452656,13.24,147.61,147.59,6.7753]
[1719542454364,6.7734,147.64,147.57,16.9411]
[1719542454572,13.24,147.61,147.59,6.7755]
[1719542454762,13.24,147.61,147.58,6.7758]
[1719542455160,13.24,147.61,147.57,23.7173]
[1719542455474,13.24,147.61,147.58,6.7756]
[1719542456478,13.24,147.61,147.59,6.7754]
[1719542457273,13.24,147.65,147.58,13.24]
[1719542457459,13.24,147.65,147.61,6.7745]
[1719542457664,13.24,147.62,147.6,6.7749]
[1719542457863,22.4723,147.67,147.58,16.9392]
[1719542458063,22.4723,147.67,147.52,29.89392807]
[1719542458064,13.24,147.61,147.52,29.89392807]
[1719542458277,13.24,147.61,147.57,6.776]
[1719542458458,13.24,147.61,147.58,6.7758]
[1719542459659,116.9314,147.66,147.54,16.9442]
[1719542459853,13.24,147.57,147.54,16.9442]
[1719542460255,13.24,147.57,147.55,6.777]
[1719542460556,13.24,147.57,147.56,6.7769]
[1719542460762,13.24,147.57,147.54,16.9442]
[1719542460970,13.24,147.56,147.54,16.9442]
[1719542461666,13.24,147.56,147.55,6.7773]
[1719542462273,13.24,147.56,147.52,6.7786]
[1719542462490,13.24,147.56,147.47,22.72497469]
[1719542462491,13.24,147.53,147.51,16.9476]
[1719542462653,52.96,147.6,147.47,15.6452]
[1719542462654,13.24,147.52,147.48,6.7801]
[1719542462851,13.24,147.5,147.48,6.7801]
[1719542463866,6.4304,147.54,147.47,16.9514]
[1719542464177,13.24,147.55,147.54,6.7775]
[1719542464375,13.24,147.55,147.53,6.7781]
[1719542464973,13.24,147.55,147.54,6.7778]
[1719542465656,13.24,147.56,147.54,6.7778]
[1719542465861,13.24,147.56,147.55,6.7773]
[1719542466088,13.24,147.56,147.54,23.7216]
[1719542466263,16.3787,147.6,147.54,23.7216]
[1719542466469,13.24,147.56,147.54,23.7216]
[1719542466967,69.3387,147.6,147.54,16.9439]
[1719542467283,69.3387,147.6,147.54,23.7213]
[1719542467659,16.3787,147.6,147.54,23.7213]
[1719542467867,13.24,147.57,147.54,23.7213]
[1719542468081,13.24,147.56,147.53,6.7782]
[1719542469485,13.24,147.56,147.54,6.7778]
[1719542470059,13.24,147.57,147.54,6.7778]
[1719542470676,23.1539,147.6,147.55,6.7772]
[1719542470677,16.3787,147.6,147.55,6.7772]
[1719542470878,13.24,147.59,147.56,6.7768]
[1719542471775,13.24,147.59,147.55,23.7202]
[1719542471961,13.24,147.59,147.56,6.7767]
[1719542472169,13.24,147.59,147.55,16.943]
[1719542472356,15.9087,147.64,147.55,16.943]
[1719542472557,13.24,147.6,147.55,16.943]
[1719542472974,13.24,147.6,147.57,6.7761]
[1719542473275,13.24,147.61,147.57,6.7761]
[1719542473480,22.682,147.64,147.58,6.7759]
[1719542473779,13.24,147.61,147.57,6.7763]
[1719542473980,13.24,147.6,147.57,6.7763]
[1719542474194,13.24,147.6,147.56,6.7767]
[1719542474360,13.24,147.58,147.55,23.7202]
[1719542474678,13.24,147.58,147.52,16.9467]
[1719542474872,13.24,147.56,147.52,23.7251]
[1719542475055,13.24,147.6,147.5,6.3208]
[1719542475259,13.24,147.53,147.49,6.78]
[1719542475674,13.24,147.53,147.49,23.7299]
[1719542475873,13.24,147.53,147.5,6.7795]
[1719542476084,13.24,147.53,147.49,23.7299]
[1719542476270,13.24,147.51,147.49,16.9499]
[1719542476474,6.7774,147.55,147.49,16.9499]
[1719542477782,6.7774,147.55,147.49,23.7299]
[1719542478378,6.777,147.56,147.5,6.7795]
[1719542478572,6.7765,147.57,147.5,6.7795]
[1719542478773,6.7765,147.57,147.51,6.7791]
[1719542479171,6.7765,147.57,147.49,16.9499]
[1719542479172,6.777,147.56,147.5,6.7795]
[1719542479574,6.777,147.56,147.49,16.9499]
[1719542479575,1.054,147.58,147.51,6.7788]
[1719542479772,6.7765,147.57,147.51,6.7788]
[1719542480285,7.83,147.58,147.52,6.7787]
[1719542480463,7.83,147.58,147.51,6.7788]
[1719542480664,7.83,147.58,147.49,16.9499]
[1719542481179,7.83,147.58,147.52,6.7787]
[1719542481482,6.7764,147.57,147.49,16.9499]
[1719542482783,6.7764,147.57,147.51,6.7791]
[1719542484099,6.7773,147.56,147.49,23.7296]
[1719542485171,6.7773,147.56,147.5,6.7796]
[1719542485372,7.8301,147.58,147.51,6.779]
[1719542485575,7.8301,147.58,147.49,16.9499]
[1719542485576,7.8301,147.58,147.52,6.7784]
[1719542485986,6.7764,147.57,147.51,23.7264]
[1719542488768,7.8301,147.58,147.52,6.7784]
[1719542490789,7.8304,147.58,147.51,16.9473]
[1719542491093,6.7764,147.57,147.51,16.9473]
[1719542491294,7.83,147.58,147.52,6.7787]
[1719542492884,1.054,147.58,147.52,6.7787]
[1719542494181,7.83,147.58,147.52,6.7787]
[1719542494886,7.83,147.58,147.51,16.9473]
[1719542494887,1.054,147.58,147.53,6.7782]
[1719542496371,1.054,147.58,147.55,6.7772]
[1719542496571,1.054,147.58,147.54,6.7774]
[1719542496808,1.054,147.58,147.55,6.7773]
[1719542497105,1.054,147.58,147.55,16.9426]
[1719542497269,1.054,147.58,147.57,6.7764]
[1719542499174,1.054,147.58,147.57,20.0364]
[1719542499894,1.054,147.58,147.57,6.7764]
[1719542504575,1.054,147.58,147.57,20.0364]
[1719542504776,6.2804,147.66,147.6,6.7746]
[1719542504977,13.26,147.64,147.61,6.7745]
[1719542505296,13.26,147.64,147.6,6.7749]
[1719542505892,13.26,147.64,147.59,23.7137]
[1719542508609,13.26,147.64,147.59,23.7136]
[1719542508775,13.26,147.62,147.57,6.7763]
[1719542509183,13.26,147.62,147.58,6.7759]
[1719542509606,13.26,147.62,147.57,6.7763]
[1719542509987,13.26,147.62,147.56,23.7181]
[1719542510196,13.26,147.61,147.56,23.7181]
[1719542510392,13.26,147.61,147.57,6.7764]
[1719542512179,29.3258,147.61,147.54,6.7776]
[1719542512486,29.3258,147.61,147.5,29.7815]
[1719542512487,13.26,147.57,147.5,29.7815]
[1719542512695,13.26,147.57,147.53,6.7781]
[1719542513078,13.26,147.57,147.53,23.7233]
[1719542513282,13.26,147.57,147.54,6.7778]
[1719542516309,13.26,147.58,147.54,6.7778]
[1719542518722,13.364,147.6,147.54,6.7778]
[1719542518892,13.26,147.58,147.54,6.7778]
[1719542519920,13.26,147.58,147.53,23.7233]
[1719542520096,13.26,147.57,147.53,23.7233]
[1719542520592,13.26,147.57,147.53,16.9452]
[1719542520791,6.7764,147.57,147.5,40.2491]
[1719542521010,13.26,147.54,147.5,23.7276]
[1719542521603,13.26,147.54,147.51,6.7791]
[1719542522102,6.7756,147.59,147.52,6.7786]
[1719542522300,13.26,147.55,147.52,6.7786]
[1719542526723,13.26,147.56,147.52,6.7786]
[1719542528119,6.7755,147.59,147.53,6.7782]
[1719542528331,13.3641,147.6,147.53,6.7782]
[1719542528699,13.26,147.57,147.53,6.7782]
[1719542529017,59.629,147.6,147.52,16.9465]
[1719542529222,59.629,147.6,147.51,6.7788]
[1719542529451,6.7774,147.55,147.49,16.9494]
[1719542529745,13.26,147.52,147.48,6.7805]
[1719542529976,13.26,147.51,147.48,6.7805]
[1719542530554,13.26,147.52,147.49,6.7799]
[1719542530764,13.26,147.53,147.49,6.7799]
[1719542533066,13.26,147.53,147.47,15.8727]
[1719542533067,13.26,147.51,147.47,6.781]
[1719542533241,13.26,147.49,147.45,16.9541]
[1719542533569,13.26,147.49,147.45,23.7357]
[1719542533751,13.26,147.49,147.46,6.7814]
[1719542535269,13.26,147.49,147.45,23.7359]
[1719542536469,13.26,147.48,147.43,21.7267]
[1719542536655,13.26,147.47,147.43,15.4715]
[1719542537450,13.26,147.47,147.44,6.7824]
[1719542537642,13.26,147.47,147.45,6.7819]
[1719542538176,6.7792,147.51,147.44,23.7374]
[1719542538177,13.26,147.48,147.44,23.7374]
[1719542538347,13.26,147.48,147.44,16.9555]
[1719542538769,13.26,147.48,147.46,6.7814]
[1719542539678,13.26,147.48,147.45,6.7818]
[1719542541383,6.056,147.54,147.47,16.9522]
[1719542541566,13.26,147.51,147.47,16.9522]
[1719542542084,16.1093,147.55,147.47,16.9522]
[1719542542244,13.26,147.53,147.47,16.9522]
[1719542542960,13.26,147.53,147.5,6.7796]
[1719542543275,20.0384,147.53,147.45,6.6101]
[1719542543581,13.26,147.51,147.47,6.7807]
[1719542545267,6.7781,147.54,147.48,6.7805]
[1719542545452,13.26,147.51,147.48,6.7805]
[1719542546466,13.26,147.51,147.49,6.78]
[1719542546665,6.7775,147.55,147.49,6.78]
[1719542546666,13.26,147.52,147.49,6.78]
[1719542546960,13.26,147.52,147.48,6.7804]
[1719542548739,6.7774,147.55,147.48,6.7804]
[1719542548740,13.26,147.51,147.48,6.7804]
[1719542548978,13.26,147.5,147.46,6.7814]
[1719542549185,13.26,147.5,147.44,30.2154]
[1719542549483,13.26,147.51,147.47,6.781]
[1719542550249,13.26,147.51,147.45,6.7819]
[1719542550250,13.26,147.5,147.45,6.7819]
[1719542550480,13.26,147.47,147.43,15.4715]
[1719542550784,13.26,147.47,147.43,22.2539]
[1719542551154,13.26,147.46,147.43,16.9565]
[1719542552674,13.26,147.46,147.4,6.7841]
[1719542552675,13.26,147.44,147.4,6.7841]
[1719542552879,16.1125,147.46,147.39,6.7847]
[1719542552880,13.26,147.42,147.39,6.7847]
[1719542553194,13.26,147.41,147.37,6.7852]
[1719542553383,13.26,147.41,147.38,6.7849]
[1719542553971,13.26,147.41,147.4,6.7842]
[1719542554186,13.26,147.42,147.4,6.7842]
[1719542555697,13.26,147.42,147.39,6.7846]
[1719542556285,13.26,147.42,147.4,6.784]
[1719542556494,16.1125,147.46,147.4,6.784]
[1719542556690,13.26,147.43,147.4,6.784]
[1719542556992,16.1125,147.46,147.38,16.9624]
[1719542556993,13.26,147.42,147.38,16.9624]
[1719542557207,22.8944,147.46,147.4,6.7841]
[1719542557208,16.1125,147.46,147.4,6.7841]
[1719542557378,16.1125,147.46,147.39,6.7846]
[1719542557379,22.894,147.46,147.39,6.7846]
[1719542557580,13.26,147.42,147.4,6.7841]
[1719542558002,13.26,147.43,147.4,6.7841]
[1719542558991,16.1125,147.46,147.4,6.7841]
[1719542559199,13.26,147.43,147.4,6.7841]
[1719542560603,13.26,147.46,147.42,6.7832]
[1719542560808,13.26,147.46,147.43,6.7828]
[1719542561206,13.26,147.47,147.43,6.7828]
[1719542561395,13.26,147.47,147.42,6.7832]
[1719542562303,6.7801,147.49,147.42,6.7832]
[1719542562610,21.4039,147.5,147.42,16.9579]
[1719542562810,13.26,147.48,147.44,6.7822]
[1719542563110,6.7796,147.51,147.44,6.7822]
[1719542563317,13.26,147.49,147.44,6.7822]
[1719542566008,13.26,147.49,147.44,6.7823]
[1719542566313,6.4064,147.53,147.45,6.7817]
[1719542566482,13.26,147.51,147.45,6.7817]
[1719542566679,13.26,147.5,147.46,6.7813]
[1719542567300,13.26,147.5,147.45,6.7819]
[1719542567511,13.26,147.51,147.45,6.7819]
[1719542567700,6.7788,147.52,147.45,6.7819]
[1719542567908,6.7784,147.53,147.46,6.781]
[1719542568218,13.26,147.51,147.47,6.781]
[1719542568423,23.3023,147.54,147.47,6.781]
[1719542568733,13.26,147.52,147.47,6.781]
[1719542569309,13.26,147.51,147.43,16.9568]
[1719542569639,133.4693,147.54,147.43,16.9568]
[1719542569811,13.26,147.48,147.43,23.7395]
[1719542570505,13.26,147.48,147.41,22.3304]
[1719542570707,13.26,147.47,147.41,22.3304]
[1719542570911,13.26,147.45,147.41,15.5471]
[1719542571126,13.26,147.45,147.4,16.9603]
[1719542571294,13.26,147.45,147.4,23.7442]
[1719542571495,13.26,147.45,147.41,6.7837]
[1719542571695,13.26,147.45,147.42,6.7832]
[1719542571927,13.26,147.46,147.42,6.7832]
[1719542573327,13.2544,147.49,147.42,6.7832]
[1719542573533,13.26,147.48,147.43,6.7827]
[1719542574203,13.26,147.48,147.44,6.7823]
[1719542575213,13.26,147.49,147.44,6.7823]
[1719542575411,13.26,147.49,147.43,6.7827]
[1719542575808,6.7806,147.48,147.42,16.9579]
[1719542576008,13.26,147.48,147.42,23.7411]
[1719542576208,13.26,147.47,147.42,23.7411]
[1719542576512,13.26,147.46,147.42,23.7411]
[1719542576707,13.26,147.46,147.4,6.784]
[1719542577040,13.26,147.44,147.39,16.9613]
[1719542577340,13.26,147.44,147.39,23.7457]
[1719542578346,13.26,147.44,147.4,6.7842]
[1719542579429,13.26,147.43,147.4,6.7842]
[1719542579636,13.26,147.44,147.4,6.7842]
[1719542579949,13.26,147.44,147.4,6.7841]
[1719542582747,13.26,147.44,147.41,6.7836]
[1719542583543,16.4351,147.48,147.37,15.8074]
[1719542583754,21.4611,147.52,147.45,6.7819]
[1719542583949,13.26,147.49,147.45,6.7819]
[1719542584425,13.26,147.49,147.44,6.7822]
[1719542584626,6.7792,147.51,147.44,6.7822]
[1719542584824,13.26,147.49,147.44,6.7822]
[1719542585451,13.26,147.49,147.45,6.7818]
[1719542585953,6.7792,147.51,147.45,6.7818]
[1719542586135,13.26,147.49,147.45,6.7818]
[1719542587117,13.26,147.49,147.44,6.7822]
[1719542587831,6.7784,147.53,147.46,6.7811]
[1719542588143,13.26,147.51,147.47,6.7809]
[1719542588317,13.26,147.52,147.47,6.7809]
[1719542590530,13.26,147.52,147.46,6.7813]
[1719542590731,20.0387,147.52,147.46,6.7813]
[1719542590950,13.26,147.51,147.46,6.7813]
[1719542593736,6.7783,147.53,147.46,6.7813]
[1719542594032,13.26,147.51,147.46,6.7813]
[1719542595056,6.7774,147.55,147.48,6.7802]
[1719542595273,15.8514,147.56,147.49,16.9494]
[1719542595442,13.26,147.56,147.51,6.7789]
[1719542595639,13.26,147.56,147.5,6.7795]
[1719542596249,20.0369,147.56,147.5,6.7795]
[1719542596560,13.26,147.56,147.51,23.7266]
[1719542597274,16.9372,147.61,147.54,6.7777]
[1719542597275,13.26,147.59,147.54,6.7777]
[1719542597768,13.26,147.58,147.5,16.9486]
[1719542598072,13.26,147.57,147.51,13.26]
[1719542598275,13.26,147.57,147.52,6.7787]
[1719542598969,6.7756,147.59,147.52,6.7787]
[1719542599151,32.7872,147.64,147.48,16.4107]
[1719542599347,13.26,147.59,147.54,6.7777]
[1719542599946,13.26,147.58,147.53,6.7781]
[1719542601376,13.26,147.58,147.54,6.7777]
[1719542601561,13.26,147.59,147.54,6.7777]
[1719542605673,13.26,147.6,147.55,6.7773]
[1719542606041,6.7737,147.63,147.56,6.7767]
[1719542606240,254.6,147.65,147.56,1.3552764]
[1719542606464,21.26784245,147.68,147.54,15.1826]
[1719542606465,13.26,147.64,147.6,6.7748]
[1719542606662,13.26,147.65,147.6,6.7748]
[1719542606842,13.26,147.65,147.59,13.26]
[1719542606843,15.9316,147.68,147.61,6.7745]
[1719542607043,13.26,147.65,147.61,6.7745]
[1719542607557,15.9316,147.68,147.61,6.7745]
[1719542607754,13.26,147.66,147.61,6.7745]
[1719542608084,13.26,147.67,147.62,6.7741]
[1719542608559,270.744,147.72,147.63,6.7735]
[1719542608866,13.26,147.71,147.65,6.7726]
[1719542610866,261.3699,147.72,147.65,6.7726]
[1719542611971,6.7699,147.72,147.65,6.7726]
[1719542613771,6.7691,147.73,147.67,6.7718]
[1719542614070,6.7691,147.73,147.66,6.7722]
[1719542614274,15.507,147.76,147.6,15.6092]
[1719542614566,15.507,147.76,147.66,6.7721]
[1719542614567,6.7691,147.73,147.66,6.7721]
[1719542614948,6.7696,147.72,147.66,6.7721]
[1719542615363,15.507,147.76,147.65,16.9312]
[1719542615364,6.77,147.71,147.65,16.9312]
[1719542616965,6.77,147.71,147.65,23.7038]
[1719542617163,6.7696,147.72,147.65,23.7038]
[1719542617364,15.507,147.76,147.7,6.7704]
[1719542618881,13.3618,147.77,147.7,6.7704]
[1719542619047,254.6,147.79,147.69,16.9266]
[1719542619048,6.7668,147.78,147.69,16.9266]
[1719542619375,6.768,147.76,147.69,23.6974]
[1719542619577,6.7687,147.74,147.67,28.0072]
[1719542619883,6.7678,147.76,147.69,6.7707]
[1719542620185,6.7674,147.77,147.7,6.7704]
[1719542620880,41.619,147.8,147.72,6.7694]
[1719542621082,6.7669,147.78,147.71,6.7699]
[1719542625450,6.7669,147.78,147.7,16.9257]
[1719542626276,6.7673,147.77,147.7,16.9257]
[1719542626490,6.7678,147.76,147.7,23.696]
[1719542629902,6.7673,147.77,147.7,23.696]
[1719542631397,100.0,147.79,147.67,21.2355]
[1719542631587,16.9178,147.78,147.67,21.2355]
[1719542631893,6.768,147.76,147.67,21.2355]
[1719542632183,6.7673,147.77,147.7,6.7703]
[1719542632376,45.10371867,147.8,147.67,21.2355]
[1719542632582,41.619,147.8,147.71,6.7699]
[1719542632775,13.23,147.75,147.71,23.6938]
[1719542634287,13.23,147.75,147.71,16.9239]
[1719542634455,13.23,147.75,147.69,6.7704]
[1719542634660,6.7677,147.76,147.7,6.7704]
[1719542634874,6.7683,147.75,147.69,6.7709]
[1719542635106,6.7678,147.76,147.69,6.7709]
[1719542635266,6.7673,147.77,147.7,6.7703]
[1719542635467,6.7673,147.77,147.7,16.9258]
[1719542636693,6.7673,147.77,147.71,6.7698]
[1719542636905,6.7668,147.78,147.71,6.7698]
[1719542639771,6.7664,147.79,147.72,6.7695]
[1719542640094,6.7664,147.79,147.73,6.769]
[1719542640674,21.915,147.8,147.74,6.7686]
[1719542640874,6.7655,147.81,147.74,6.7686]
[1719542641073,0.7973825,147.82,147.73,16.0972]
[1719542641315,7.5623825,147.82,147.76,6.7676]
[1719542641677,0.7973825,147.82,147.76,6.7676]
[1719542641983,0.7973825,147.82,147.76,16.9187]
[1719542642196,0.7973825,147.82,147.77,6.7671]
[1719542643327,0.7973825,147.82,147.78,6.7667]
[1719542643635,0.7973825,147.82,147.76,16.9187]
[1719542643636,0.7973825,147.82,147.77,6.7671]
[1719542643841,0.7973825,147.82,147.78,6.7665]
[1719542644340,0.7973825,147.82,147.8,6.7658]
[1719542644724,0.7973825,147.82,147.79,6.7662]
[1719542645938,0.7973825,147.82,147.78,16.9165]
[1719542645939,0.7973825,147.82,147.8,6.7657]
[1719542647535,0.7973825,147.82,147.81,6.7654]
[1719542654331,0.04023039,147.88,147.84,6.7639]
[1719542655048,0.04023039,147.88,147.85,6.7634]
[1719542657047,13.24023039,147.88,147.83,23.675]
[1719542657348,13.2,147.87,147.83,23.675]
[1719542657522,13.24023039,147.88,147.83,23.675]
[1719542658035,13.24023039,147.88,147.84,6.7639]
[1719542659359,0.04023039,147.88,147.84,6.7639]
[1719542659847,0.04023039,147.88,147.83,16.9109]
[1719542659848,13.2,147.86,147.83,16.9109]
[1719542660933,13.2,147.85,147.8,16.9141]
[1719542661130,6.7628,147.87,147.8,16.9141]
[1719542661131,13.2,147.84,147.8,23.6799]
[1719542662017,13.2,147.85,147.81,6.765]
[1719542662222,13.2,147.85,147.8,23.6798]
[1719542662449,13.2,147.85,147.81,6.7654]
[1719542662624,6.80253039,147.88,147.83,6.7644]
[1719542662625,13.2,147.86,147.83,6.7644]
[1719542662942,13.2,147.86,147.82,6.7648]
[1719542663145,0.04023039,147.88,147.83,16.911]
[1719542663353,13.2,147.87,147.83,16.911]
[1719542664527,13.2,147.87,147.84,6.7639]
[1719542665053,0.04023039,147.88,147.84,6.7639]
[1719542665231,13.24023039,147.88,147.84,6.7639]
[1719542666244,0.04023039,147.88,147.84,6.7639]
[1719542666963,0.04023039,147.88,147.85,6.7635]
[1719542667158,0.04023039,147.88,147.82,13.2]
[1719542667331,0.04023039,147.88,147.87,6.7626]
[1719542667831,0.04023039,147.88,147.86,6.763]
[1719542669658,0.04023039,147.88,147.87,6.7626]
[1719542670037,0.04023039,147.88,147.87,19.9626]
[1719542672262,0.04023039,147.88,147.87,36.1358]
[1719542674136,13.2,147.95,147.91,6.7605]
[1719542674465,0.8369043,147.97,147.92,6.7603]
[1719542674768,14.0369043,147.97,147.92,6.7603]
[1719542675067,13.2,147.96,147.92,6.7603]
[1719542675233,0.8369043,147.97,147.92,6.7603]
[1719542675430,13.2,147.96,147.92,6.7603]
[1719542676251,13.2,147.96,147.95,6.759]
[1719542676570,14.0369043,147.97,147.92,6.7602]
[1719542676769,0.8369043,147.97,147.92,6.7602]
[1719542677067,14.0369043,147.97,147.93,6.7598]
[1719542677263,0.8369043,147.97,147.87,16.1732]
[1719542677565,13.2,147.93,147.89,6.7614]
[1719542677770,13.2,147.93,147.9,6.7612]
[1719542677950,13.2,147.91,147.85,16.9083]
[1719542678148,19.365,147.96,147.85,16.9083]
[1719542678149,15.3512,147.95,147.85,16.9083]
[1719542678350,13.2,147.89,147.85,16.9083]
[1719542678548,13.2,147.88,147.85,16.9083]
[1719542678749,13.2,147.88,147.83,23.178]
[1719542678965,13.2,147.88,147.83,16.4136]
[1719542679177,13.2,147.87,147.83,23.178]
[1719542679348,13.2,147.87,147.83,16.4136]
[1719542679541,13.2,147.87,147.82,23.1227]
[1719542679851,116.8995,147.94,147.83,6.7641]
[1719542679852,13.2,147.86,147.83,6.7641]
[1719542680780,6.7614,147.9,147.83,6.7641]
[1719542680947,6.7608,147.91,147.84,6.7636]
[1719542681456,6.7608,147.91,147.85,6.7635]
[1719542681654,26.42,147.93,147.85,6.7635]
[1719542681655,6.7605,147.92,147.85,6.7635]
[1719542681858,6.7605,147.92,147.84,16.9096]
[1719542682741,33.18,147.93,147.84,16.9096]
[1719542682944,15.3512,147.95,147.87,6.7625]
[1719542683141,6.7595,147.94,147.88,6.7622]
[1719542683572,15.3512,147.95,147.79,15.4113]
[1719542683753,32.2497,147.95,147.8,20.0]
[1719542683948,126.42,147.94,147.79,15.4113]
[1719542684156,16.9003,147.93,147.79,15.4113]
[1719542684962,6.7614,147.9,147.83,6.7644]
[1719542685166,6.7614,147.9,147.84,6.7639]
[1719542685365,26.42,147.94,147.85,6.7631]
[1719542685651,126.42,147.91,147.81,16.9128]
[1719542685867,6.7626,147.88,147.82,6.7648]
[1719542686162,6.7622,147.88,147.81,23.6782]
[1719542687651,6.7617,147.89,147.82,6.7647]
[1719542688061,26.42,147.91,147.82,6.7647]
[1719542688062,6.7623,147.88,147.82,6.7647]
[1719542688476,6.7618,147.89,147.82,6.7647]
[1719542689766,6.7627,147.87,147.74,15.1386]
[1719542689973,47.6638,147.9,147.74,15.1386]
[1719542690165,6.7622,147.88,147.81,6.7653]
[1719542690570,6.7622,147.88,147.82,6.7649]
[1719542690772,6.7622,147.88,147.81,6.7653]
[1719542691669,21.8103,147.9,147.82,16.9119]
[1719542691864,26.42,147.93,147.81,22.4629]
[1719542692076,100.0,147.92,147.81,16.2569]
[1719542692283,15.7301,147.91,147.76,22.4629]
[1719542692580,100.0,147.89,147.76,22.4629]
[1719542693168,100.0,147.89,147.78,16.9167]
[1719542693169,6.7641,147.84,147.78,16.9167]
[1719542693478,6.7641,147.84,147.78,23.6834]
[1719542694080,6.7637,147.85,147.79,6.7662]
[1719542694267,6.7649,147.83,147.75,16.9202]
[1719542694474,6.0816,147.86,147.75,16.9202]
[1719542694475,6.7651,147.82,147.76,6.7673]
[1719542694657,49.0552,147.84,147.77,6.7671]
[1719542694857,49.0552,147.84,147.75,16.9202]
[1719542695075,42.2911,147.84,147.78,6.7667]
[1719542695459,15.8711,147.84,147.79,6.7663]
[1719542696783,15.8711,147.84,147.78,6.7666]
[1719542697286,22.6351,147.84,147.78,6.7666]
[1719542697876,6.7645,147.83,147.77,23.6847]
[1719542698385,22.6352,147.84,147.77,23.6847]